[Event "Late-Titled-Tuesday-Blitz-January-16-2024"]
[Site "Chess.com"]
[Date "2024.01.16"]
[Round "7"]
[White "IgorBjelobrk"]
[Black "Actuary44"]
[Result "0-1"]
[WhiteElo "2629"]
[BlackElo "2502"]
[TimeControl "180+1"]
[EndTime "15:17:23 PST"]
[Termination "Actuary44 won by resignation"]

1. d4 {[%clk 0:02:57.9]} 1... Nf6 {[%clk 0:02:59.5]} 2. c4 {[%clk 0:02:57.5]}
2... g6 {[%clk 0:03:00.2]} 3. Nc3 {[%clk 0:02:57]} 3... Bg7 {[%clk 0:03:00.7]}
4. e4 {[%clk 0:02:56.4]} 4... d6 {[%clk 0:03:01.4]} 5. h3 {[%clk 0:02:56.1]}
5... O-O {[%clk 0:03:02.2]} 6. Nf3 {[%clk 0:02:55.9]} 6... e5 {[%clk 0:03:01]}
7. d5 {[%clk 0:02:55.5]} 7... Ne8 {[%clk 0:03:00]} 8. g4 {[%clk 0:02:49]} 8...
c5 {[%clk 0:03:00.1]} 9. Be2 {[%clk 0:02:46.1]} 9... Na6 {[%clk 0:03:00.5]} 10.
Be3 {[%clk 0:02:45.1]} 10... Nac7 {[%clk 0:03:01.1]} 11. Nd2 {[%clk 0:02:43.9]}
11... a6 {[%clk 0:03:01]} 12. a4 {[%clk 0:02:43.2]} 12... Rb8 {[%clk 0:03:01.1]}
13. h4 {[%clk 0:02:42.8]} 13... Bd7 {[%clk 0:03:00.2]} 14. a5 {[%clk 0:02:40.5]}
14... b5 {[%clk 0:03:00.1]} 15. axb6 {[%clk 0:02:40.4]} 15... Rxb6 {[%clk
0:03:00.3]} 16. b3 {[%clk 0:02:40.8]} 16... f5 {[%clk 0:02:53.7]} 17. exf5
{[%clk 0:02:39.5]} 17... gxf5 {[%clk 0:02:54.6]} 18. gxf5 {[%clk 0:02:39.2]}
18... Bxf5 {[%clk 0:02:55.5]} 19. h5 {[%clk 0:02:37.3]} 19... Kh8 {[%clk
0:02:52.6]} 20. h6 {[%clk 0:02:36.9]} 20... Bf6 {[%clk 0:02:52.8]} 21. Nce4
{[%clk 0:02:36.3]} 21... Be7 {[%clk 0:02:46.8]} 22. Bg4 {[%clk 0:02:31.9]} 22...
Qd7 {[%clk 0:02:35.8]} 23. Bxf5 {[%clk 0:02:31.2]} 23... Qxf5 {[%clk 0:02:36.7]}
24. Qh5 {[%clk 0:02:26.8]} 24... Qxh5 {[%clk 0:02:23.5]} 25. Rxh5 {[%clk
0:02:27.7]} 25... Nf6 {[%clk 0:02:22.1]} 26. Nxf6 {[%clk 0:02:27.3]} 26... Bxf6
{[%clk 0:02:19.3]} 27. Ne4 {[%clk 0:02:12.6]} 27... Ne8 {[%clk 0:02:14.9]} 28.
Ra3 {[%clk 0:02:11.3]} 28... Be7 {[%clk 0:02:09.9]} 29. Kd2 {[%clk 0:02:09.9]}
29... Nf6 {[%clk 0:02:09.3]} 30. Nxf6 {[%clk 0:02:09.4]} 30... Bxf6 {[%clk
0:02:09.7]} 31. Kd3 {[%clk 0:01:55.4]} 31... Kg8 {[%clk 0:02:05.8]} 32. Ke4
{[%clk 0:01:54.2]} 32... Rfb8 {[%clk 0:01:51.1]} 33. Rf5 {[%clk 0:01:50.5]}
33... Be7 {[%clk 0:01:51.2]} 34. Ra1 {[%clk 0:01:39.2]} 34... Rxb3 {[%clk
0:01:40.5]} 35. Rg1+ {[%clk 0:01:38.4]} 35... Kh8 {[%clk 0:01:40.9]} 36. Rf7
{[%clk 0:01:35.8]} 36... Rxe3+ {[%clk 0:01:08.5]} 37. fxe3 {[%clk 0:01:33.3]}
37... Bf8 {[%clk 0:01:09.4]} 38. Rf6 {[%clk 0:01:27.2]} 38... Be7 {[%clk
0:01:05.7]} 39. Re6 {[%clk 0:01:26.5]} 39... Bf8 {[%clk 0:01:00.6]} 40. Kf5
{[%clk 0:01:25.6]} 40... a5 {[%clk 0:00:58.5]} 41. Kf6 {[%clk 0:01:20.2]} 41...
Bxh6 {[%clk 0:00:57.8]} 42. Rxd6 {[%clk 0:01:13.9]} 42... Bxe3 {[%clk
0:00:55.7]} 43. Ra1 {[%clk 0:01:11.6]} 43... Bd2 {[%clk 0:00:45.3]} 44. Rc6
{[%clk 0:01:07.2]} 44... e4 {[%clk 0:00:44.1]} 45. Re6 {[%clk 0:01:03.5]} 45...
Bc3+ {[%clk 0:00:42.9]} 46. Ke7 {[%clk 0:01:03.4]} 46... Bxa1 {[%clk 0:00:43.3]}
47. d6 {[%clk 0:01:03.9]} 47... Kg7 {[%clk 0:00:30.9]} 48. d7 {[%clk 0:01:00.2]}
48... a4 {[%clk 0:00:28.5]} 49. d8=Q {[%clk 0:00:57.2]} 49... Bf6+ {[%clk
0:00:27.2]} 50. Rxf6 {[%clk 0:00:54.7]} 50... Rxd8 {[%clk 0:00:27.4]} 51. Rf7+
{[%clk 0:00:54]} 51... Kg6 {[%clk 0:00:27.8]} 52. Rf6+ {[%clk 0:00:53.2]} 52...
Kg5 {[%clk 0:00:28.2]} 53. Ra6 {[%clk 0:00:50.4]} 53... Rd4 {[%clk 0:00:26.4]}
54. Rxa4 {[%clk 0:00:50.6]} 54... e3 {[%clk 0:00:26.9]} 0-1

[Event "Late-Titled-Tuesday-Blitz-January-16-2024"]
[Site "Chess.com"]
[Date "2024.01.16"]
[Round "7"]
[White "Rikikits"]
[Black "Msb2"]
[Result "1-0"]
[WhiteElo "2846"]
[BlackElo "3019"]
[TimeControl "180+1"]
[EndTime "15:17:24 PST"]
[Termination "Rikikits won by checkmate"]

1. d4 {[%clk 0:03:00.9]} 1... d5 {[%clk 0:03:00]} 2. Nf3 {[%clk 0:03:00.4]} 2...
e6 {[%clk 0:03:00.6]} 3. Bf4 {[%clk 0:02:57.7]} 3... c5 {[%clk 0:03:00.6]} 4. e3
{[%clk 0:02:57.1]} 4... Nc6 {[%clk 0:03:01.2]} 5. Nbd2 {[%clk 0:02:56.8]} 5...
Bd6 {[%clk 0:03:01.5]} 6. dxc5 {[%clk 0:02:55.9]} 6... Bxf4 {[%clk 0:03:00.3]}
7. exf4 {[%clk 0:02:56.8]} 7... Qf6 {[%clk 0:03:01.2]} 8. c3 {[%clk 0:02:54]}
8... Qxf4 {[%clk 0:03:00.6]} 9. g3 {[%clk 0:02:47]} 9... Qc7 {[%clk 0:02:59.5]}
10. Bg2 {[%clk 0:02:44.4]} 10... Nge7 {[%clk 0:02:57.7]} 11. O-O {[%clk
0:02:44.5]} 11... O-O {[%clk 0:02:58.3]} 12. b4 {[%clk 0:02:42.3]} 12... e5
{[%clk 0:02:49.8]} 13. Nb3 {[%clk 0:02:41.8]} 13... Bg4 {[%clk 0:02:41.7]} 14.
Qd2 {[%clk 0:02:36.4]} 14... f6 {[%clk 0:02:29.8]} 15. Ne1 {[%clk 0:02:26.5]}
15... Rad8 {[%clk 0:02:28.5]} 16. Nc2 {[%clk 0:02:26.2]} 16... Be6 {[%clk
0:02:26.8]} 17. Rfe1 {[%clk 0:02:24.7]} 17... h5 {[%clk 0:02:25.9]} 18. Ncd4
{[%clk 0:02:23.6]} 18... Nxd4 {[%clk 0:02:19.5]} 19. Nxd4 {[%clk 0:02:22.2]}
19... Bd7 {[%clk 0:02:19.9]} 20. Nc2 {[%clk 0:02:13.2]} 20... Bg4 {[%clk
0:02:18.8]} 21. Na3 {[%clk 0:01:42.6]} 21... a6 {[%clk 0:02:18]} 22. Nc2 {[%clk
0:01:37.2]} 22... h4 {[%clk 0:02:15.5]} 23. Ne3 {[%clk 0:01:35.7]} 23... Be6
{[%clk 0:02:15.7]} 24. Nc2 {[%clk 0:01:32.2]} 24... h3 {[%clk 0:02:14.8]} 25.
Bf3 {[%clk 0:01:30]} 25... b6 {[%clk 0:02:01.4]} 26. Nd4 {[%clk 0:01:22.9]}
26... Bc8 {[%clk 0:01:55.7]} 27. Nb3 {[%clk 0:01:21.3]} 27... Bb7 {[%clk
0:01:48.1]} 28. cxb6 {[%clk 0:01:20.7]} 28... Qxb6 {[%clk 0:01:49]} 29. Nc5
{[%clk 0:01:20.9]} 29... Ba8 {[%clk 0:01:49.8]} 30. Bg4 {[%clk 0:01:09.9]} 30...
d4 {[%clk 0:01:46.1]} 31. Be6+ {[%clk 0:01:10.2]} 31... Kh8 {[%clk 0:01:41.7]}
32. Qe2 {[%clk 0:00:53]} 32... g6 {[%clk 0:01:41]} 33. Qg4 {[%clk 0:00:48.4]}
33... Kg7 {[%clk 0:01:36.7]} 34. Bb3 {[%clk 0:00:37.9]} 34... f5 {[%clk
0:01:25.6]} 35. Qg5 {[%clk 0:00:36.1]} 35... Rf6 {[%clk 0:00:54.9]} 36. Rxe5
{[%clk 0:00:34.1]} 36... Nd5 {[%clk 0:00:53.2]} 37. Rae1 {[%clk 0:00:30.1]}
37... Rdd6 {[%clk 0:00:41]} 38. Re8 {[%clk 0:00:23]} 38... Qc6 {[%clk 0:00:38]}
39. Qh4 {[%clk 0:00:21.9]} 39... Rf8 {[%clk 0:00:23.6]} 40. R1e7+ {[%clk
0:00:18.3]} 40... Nxe7 {[%clk 0:00:20.3]} 41. Rxe7+ {[%clk 0:00:18.3]} 41... Rf7
{[%clk 0:00:19.3]} 42. Rxf7+ {[%clk 0:00:18.1]} 42... Kg8 {[%clk 0:00:20.2]} 43.
Qh7# {[%clk 0:00:18]} 1-0

[Event "Late-Titled-Tuesday-Blitz-January-16-2024"]
[Site "Chess.com"]
[Date "2024.01.16"]
[Round "7"]
[White "Piotrek1979"]
[Black "TanitoluwaAps116"]
[Result "0-1"]
[WhiteElo "2429"]
[BlackElo "2727"]
[TimeControl "180+1"]
[EndTime "15:17:28 PST"]
[Termination "TanitoluwaAps116 won by resignation"]

1. d4 {[%clk 0:03:00.9]} 1... Nf6 {[%clk 0:02:58]} 2. c4 {[%clk 0:03:01.3]} 2...
e6 {[%clk 0:02:58.1]} 3. Nf3 {[%clk 0:03:01.5]} 3... b6 {[%clk 0:02:53.5]} 4. g3
{[%clk 0:03:00]} 4... Ba6 {[%clk 0:02:53.3]} 5. b3 {[%clk 0:02:59.1]} 5... Bb4+
{[%clk 0:02:53.9]} 6. Bd2 {[%clk 0:02:57]} 6... Be7 {[%clk 0:02:54.3]} 7. Nc3
{[%clk 0:02:54.3]} 7... c6 {[%clk 0:02:50.7]} 8. Bg2 {[%clk 0:02:53.2]} 8... d5
{[%clk 0:02:50.9]} 9. O-O {[%clk 0:02:41.5]} 9... Nbd7 {[%clk 0:02:47]} 10. cxd5
{[%clk 0:02:27]} 10... cxd5 {[%clk 0:02:47.1]} 11. a4 {[%clk 0:02:21.8]} 11...
O-O {[%clk 0:02:46]} 12. Bf4 {[%clk 0:02:18.2]} 12... Rc8 {[%clk 0:02:42.5]} 13.
Nb5 {[%clk 0:02:17.8]} 13... Ne4 {[%clk 0:02:38]} 14. Qd3 {[%clk 0:02:04.3]}
14... Rc3 {[%clk 0:02:28]} 15. Qb1 {[%clk 0:02:03.3]} 15... Ndf6 {[%clk
0:02:12.3]} 16. Ne5 {[%clk 0:01:48.4]} 16... g5 {[%clk 0:01:49.7]} 17. Bxg5
{[%clk 0:01:48.4]} 17... Bxb5 {[%clk 0:01:44.3]} 18. Bxf6 {[%clk 0:01:48.4]}
18... Bxf6 {[%clk 0:01:31.1]} 19. axb5 {[%clk 0:01:45.3]} 19... Nd6 {[%clk
0:01:20.3]} 20. Nc6 {[%clk 0:01:42.8]} 20... Qe8 {[%clk 0:01:13.5]} 21. e3
{[%clk 0:01:15.4]} 21... a5 {[%clk 0:01:10.7]} 22. Qd1 {[%clk 0:00:24.5]} 22...
Nxb5 {[%clk 0:01:06]} 23. Ne5 {[%clk 0:00:24.2]} 23... Qe7 {[%clk 0:00:59.6]}
24. Re1 {[%clk 0:00:20.3]} 24... Rfc8 {[%clk 0:00:57.2]} 25. f4 {[%clk
0:00:20.2]} 25... Nd6 {[%clk 0:00:52.1]} 26. Qg4+ {[%clk 0:00:19.6]} 26... Bg7
{[%clk 0:00:50.2]} 27. Qh5 {[%clk 0:00:19.1]} 27... Nf5 {[%clk 0:00:47]} 28. Ng4
{[%clk 0:00:14.3]} 28... Rc2 {[%clk 0:00:41.1]} 29. Kh1 {[%clk 0:00:14.2]} 29...
Qb4 {[%clk 0:00:33]} 30. e4 {[%clk 0:00:13.6]} 30... Qd2 {[%clk 0:00:28.4]} 31.
Rg1 {[%clk 0:00:13]} 31... dxe4 {[%clk 0:00:23.4]} 32. Rad1 {[%clk 0:00:13.6]}
32... Qe2 {[%clk 0:00:20.5]} 33. Rde1 {[%clk 0:00:13.5]} 33... Qd2 {[%clk
0:00:19]} 34. Rd1 {[%clk 0:00:13.5]} 34... Qb4 {[%clk 0:00:17.5]} 35. Bxe4
{[%clk 0:00:13.5]} 35... Qxb3 {[%clk 0:00:15.4]} 36. Bxf5 {[%clk 0:00:13.3]}
36... Qd5+ {[%clk 0:00:15.1]} 0-1

[Event "Late-Titled-Tuesday-Blitz-January-16-2024"]
[Site "Chess.com"]
[Date "2024.01.16"]
[Round "7"]
[White "RaugintaBulba"]
[Black "StellarChess"]
[Result "1-0"]
[WhiteElo "2454"]
[BlackElo "2572"]
[TimeControl "180+1"]
[EndTime "15:17:32 PST"]
[Termination "RaugintaBulba won by resignation"]

1. d4 {[%clk 0:03:00.9]} 1... Nf6 {[%clk 0:02:59.6]} 2. c4 {[%clk 0:02:59.3]}
2... g6 {[%clk 0:02:59.3]} 3. Nc3 {[%clk 0:02:59.4]} 3... Bg7 {[%clk 0:02:59.6]}
4. e4 {[%clk 0:02:59.7]} 4... d6 {[%clk 0:02:59.7]} 5. h3 {[%clk 0:03:00.1]}
5... O-O {[%clk 0:03:00]} 6. Be3 {[%clk 0:03:00.5]} 6... Nbd7 {[%clk 0:02:59.3]}
7. g4 {[%clk 0:02:53.6]} 7... e5 {[%clk 0:02:57.3]} 8. d5 {[%clk 0:02:51.1]}
8... Nc5 {[%clk 0:02:55.6]} 9. f3 {[%clk 0:02:49]} 9... a5 {[%clk 0:02:50.1]}
10. Nge2 {[%clk 0:02:48]} 10... Bd7 {[%clk 0:02:48.6]} 11. Ng3 {[%clk
0:02:47.7]} 11... Ne8 {[%clk 0:02:42.9]} 12. h4 {[%clk 0:02:41.5]} 12... c6
{[%clk 0:02:39.4]} 13. Qd2 {[%clk 0:02:39.7]} 13... cxd5 {[%clk 0:02:39.3]} 14.
cxd5 {[%clk 0:02:39.6]} 14... b5 {[%clk 0:02:34.8]} 15. Nxb5 {[%clk 0:02:30.7]}
15... Rb8 {[%clk 0:02:31.9]} 16. Nxd6 {[%clk 0:02:24.1]} 16... Nxd6 {[%clk
0:02:31.8]} 17. Bxc5 {[%clk 0:02:23.4]} 17... Qc7 {[%clk 0:02:22]} 18. Rc1
{[%clk 0:02:16.2]} 18... Rfc8 {[%clk 0:02:21.6]} 19. Be3 {[%clk 0:02:10.8]}
19... Qb7 {[%clk 0:02:20.2]} 20. Rxc8+ {[%clk 0:02:02.5]} 20... Bxc8 {[%clk
0:02:16.1]} 21. b3 {[%clk 0:02:00.9]} 21... a4 {[%clk 0:02:15.8]} 22. Bd3 {[%clk
0:01:13.2]} 22... axb3 {[%clk 0:02:12.8]} 23. axb3 {[%clk 0:01:14.1]} 23... Qxb3
{[%clk 0:02:06.9]} 24. O-O {[%clk 0:01:14.5]} 24... Nc4 {[%clk 0:01:54.1]} 25.
Bxc4 {[%clk 0:01:14.5]} 25... Qxc4 {[%clk 0:01:55]} 26. Rc1 {[%clk 0:01:12]}
26... Qb3 {[%clk 0:01:48.9]} 27. Qc3 {[%clk 0:00:49.9]} 27... Qa2 {[%clk
0:01:24.6]} 28. Qxc8+ {[%clk 0:00:33.3]} 28... Rxc8 {[%clk 0:01:20.9]} 29. Rxc8+
{[%clk 0:00:34.2]} 29... Bf8 {[%clk 0:01:20.9]} 30. Bh6 {[%clk 0:00:33.8]} 30...
Qa1+ {[%clk 0:00:20.6]} 31. Kh2 {[%clk 0:00:29]} 31... Qa2+ {[%clk 0:00:18.1]}
32. Kh3 {[%clk 0:00:27]} 32... Qa3 {[%clk 0:00:18.8]} 33. Rxf8+ {[%clk 0:00:23]}
33... Qxf8 {[%clk 0:00:19.7]} 34. Bxf8 {[%clk 0:00:23.3]} 34... Kxf8 {[%clk
0:00:20.6]} 35. h5 {[%clk 0:00:21.1]} 35... Ke7 {[%clk 0:00:21.5]} 36. hxg6
{[%clk 0:00:21.4]} 36... hxg6 {[%clk 0:00:22.2]} 37. g5 {[%clk 0:00:20.7]} 37...
Kd6 {[%clk 0:00:21.6]} 38. Kg4 {[%clk 0:00:20.7]} 38... Kc5 {[%clk 0:00:21.9]}
39. Ne2 {[%clk 0:00:17.7]} 39... Kd6 {[%clk 0:00:21.8]} 40. Nc3 {[%clk
0:00:17.7]} 40... Kc5 {[%clk 0:00:22.2]} 41. Na4+ {[%clk 0:00:18.3]} 41... Kb5
{[%clk 0:00:20.8]} 42. Nb2 {[%clk 0:00:17.4]} 42... Kc5 {[%clk 0:00:21.3]} 43.
Nd3+ {[%clk 0:00:17.8]} 43... Kd6 {[%clk 0:00:21.2]} 44. Nb4 {[%clk 0:00:17.6]}
44... Kc5 {[%clk 0:00:21.6]} 45. Nc6 {[%clk 0:00:18.3]} 45... Kd6 {[%clk
0:00:21.8]} 46. Nd8 {[%clk 0:00:18.9]} 46... Ke7 {[%clk 0:00:21.8]} 47. Nxf7
{[%clk 0:00:18.6]} 47... Kxf7 {[%clk 0:00:22.2]} 48. f4 {[%clk 0:00:19.1]} 48...
exf4 {[%clk 0:00:20.3]} 49. Kxf4 {[%clk 0:00:20]} 49... Ke7 {[%clk 0:00:21]} 50.
e5 {[%clk 0:00:20.4]} 1-0

[Event "Late-Titled-Tuesday-Blitz-January-16-2024"]
[Site "Chess.com"]
[Date "2024.01.16"]
[Round "7"]
[White "jjbolanos"]
[Black "Balla_Tamas"]
[Result "0-1"]
[WhiteElo "2093"]
[BlackElo "2451"]
[TimeControl "180+1"]
[EndTime "15:17:32 PST"]
[Termination "Balla_Tamas won on time"]

1. e4 {[%clk 0:03:00.9]} 1... c5 {[%clk 0:02:59.9]} 2. c3 {[%clk 0:03:00.2]}
2... Nf6 {[%clk 0:02:59.9]} 3. e5 {[%clk 0:03:00.5]} 3... Nd5 {[%clk 0:02:59.4]}
4. d4 {[%clk 0:03:01.2]} 4... cxd4 {[%clk 0:02:58.8]} 5. cxd4 {[%clk 0:03:02.1]}
5... Nc6 {[%clk 0:02:58.1]} 6. Nf3 {[%clk 0:03:01.1]} 6... d6 {[%clk 0:02:57.7]}
7. Bc4 {[%clk 0:03:01.8]} 7... dxe5 {[%clk 0:02:57.6]} 8. Nxe5 {[%clk
0:03:00.5]} 8... e6 {[%clk 0:02:56.9]} 9. O-O {[%clk 0:02:59.9]} 9... Be7 {[%clk
0:02:55]} 10. Nf3 {[%clk 0:03:00.5]} 10... O-O {[%clk 0:02:54.2]} 11. Nc3 {[%clk
0:03:01.3]} 11... Nf6 {[%clk 0:02:44.8]} 12. Re1 {[%clk 0:02:58.1]} 12... b6
{[%clk 0:02:43]} 13. a3 {[%clk 0:02:56.8]} 13... Bb7 {[%clk 0:02:43.2]} 14. Bd3
{[%clk 0:02:51.8]} 14... h6 {[%clk 0:02:41.1]} 15. Bc2 {[%clk 0:02:51.9]} 15...
Na5 {[%clk 0:02:09.7]} 16. Qd3 {[%clk 0:02:35]} 16... Rc8 {[%clk 0:02:08.4]} 17.
Ne5 {[%clk 0:02:35.2]} 17... Re8 {[%clk 0:01:41]} 18. Ng4 {[%clk 0:01:44.9]}
18... Qd6 {[%clk 0:01:11.5]} 19. d5 {[%clk 0:00:35.3]} 19... Bxd5 {[%clk
0:01:03.2]} 20. Nxd5 {[%clk 0:00:35.1]} 20... Qxd5 {[%clk 0:00:58.3]} 21. Nxf6+
{[%clk 0:00:35]} 21... Bxf6 {[%clk 0:00:57.7]} 22. Qh7+ {[%clk 0:00:35.6]} 22...
Kf8 {[%clk 0:00:57.4]} 23. Bf4 {[%clk 0:00:21.7]} 23... Red8 {[%clk 0:00:29.9]}
24. Rad1 {[%clk 0:00:21]} 24... Qc6 {[%clk 0:00:19.8]} 25. Be4 {[%clk
0:00:14.7]} 25... Rxd1 {[%clk 0:00:17.6]} 26. Rxd1 {[%clk 0:00:14]} 26... Qc4
{[%clk 0:00:06.2]} 27. Bd6+ {[%clk 0:00:14.2]} 27... Ke8 {[%clk 0:00:06.5]} 28.
Qh8+ {[%clk 0:00:11.5]} 28... Kd7 {[%clk 0:00:06.2]} 29. Be5+ {[%clk 0:00:09.8]}
29... Ke7 {[%clk 0:00:06.1]} 30. Bd6+ {[%clk 0:00:09.4]} 30... Kd7 {[%clk
0:00:06.1]} 31. Be5+ {[%clk 0:00:05.8]} 31... Qd5 {[%clk 0:00:06.1]} 32. Bxd5
{[%clk 0:00:02.5]} 32... Rxh8 {[%clk 0:00:04.9]} 0-1

[Event "Late-Titled-Tuesday-Blitz-January-16-2024"]
[Site "Chess.com"]
[Date "2024.01.16"]
[Round "7"]
[White "IMRosen"]
[Black "JSPrepz"]
[Result "0-1"]
[WhiteElo "2678"]
[BlackElo "2877"]
[TimeControl "180+1"]
[EndTime "15:17:33 PST"]
[Termination "JSPrepz won on time"]

1. e4 {[%clk 0:03:00.9]} 1... e5 {[%clk 0:03:00.2]} 2. Nf3 {[%clk 0:03:01]} 2...
Nc6 {[%clk 0:03:00.6]} 3. Nc3 {[%clk 0:03:01.6]} 3... Nf6 {[%clk 0:03:00.7]} 4.
d4 {[%clk 0:03:02.3]} 4... Bb4 {[%clk 0:03:00.5]} 5. Nxe5 {[%clk 0:02:55.3]}
5... Nxe4 {[%clk 0:02:59.4]} 6. Qf3 {[%clk 0:02:28.7]} 6... Nf6 {[%clk
0:02:58.9]} 7. Be3 {[%clk 0:02:22.2]} 7... O-O {[%clk 0:02:58.4]} 8. a3 {[%clk
0:02:12.4]} 8... Bxc3+ {[%clk 0:02:54.1]} 9. bxc3 {[%clk 0:02:13.3]} 9... Re8
{[%clk 0:02:52.3]} 10. Nxc6 {[%clk 0:02:07.9]} 10... dxc6 {[%clk 0:02:53.2]} 11.
Bd3 {[%clk 0:02:02.5]} 11... Bg4 {[%clk 0:02:49.7]} 12. Qg3 {[%clk 0:02:01.9]}
12... Bh5 {[%clk 0:02:47.5]} 13. O-O {[%clk 0:01:54.9]} 13... Bg6 {[%clk
0:02:47]} 14. Rfe1 {[%clk 0:01:51]} 14... Qd7 {[%clk 0:02:30.9]} 15. Rad1 {[%clk
0:01:41.8]} 15... Nd5 {[%clk 0:02:22.3]} 16. c4 {[%clk 0:01:38.4]} 16... Nc3
{[%clk 0:02:15.5]} 17. Ra1 {[%clk 0:01:36.3]} 17... Ne4 {[%clk 0:01:55.4]} 18.
Qf4 {[%clk 0:01:29]} 18... Nd6 {[%clk 0:01:50.4]} 19. c5 {[%clk 0:01:25.8]}
19... Nf5 {[%clk 0:01:45.1]} 20. Rad1 {[%clk 0:01:17]} 20... Ne7 {[%clk
0:01:44.7]} 21. Qg3 {[%clk 0:01:07.2]} 21... Bxd3 {[%clk 0:01:42.1]} 22. Rxd3
{[%clk 0:01:06.1]} 22... Ng6 {[%clk 0:01:26.5]} 23. Rb1 {[%clk 0:01:02.8]} 23...
b5 {[%clk 0:01:18.6]} 24. h4 {[%clk 0:00:54.5]} 24... Re4 {[%clk 0:01:10.6]} 25.
h5 {[%clk 0:00:48.3]} 25... Rg4 {[%clk 0:01:00.6]} 26. Qh3 {[%clk 0:00:43.2]}
26... Nh4 {[%clk 0:01:00]} 27. g3 {[%clk 0:00:26.8]} 27... Nf3+ {[%clk
0:00:58.5]} 28. Kg2 {[%clk 0:00:23.5]} 28... Qd5 {[%clk 0:00:58.3]} 29. Kf1
{[%clk 0:00:11.1]} 29... Re8 {[%clk 0:00:46]} 30. Bf4 {[%clk 0:00:05.2]} 30...
Ng5 {[%clk 0:00:20.6]} 31. Qh2 {[%clk 0:00:04.4]} 31... Ne4 {[%clk 0:00:17.8]}
32. Qg2 {[%clk 0:00:03.1]} 32... Qxh5 {[%clk 0:00:15.3]} 33. Re1 {[%clk
0:00:03.2]} 33... Qg6 {[%clk 0:00:09.9]} 34. f3 {[%clk 0:00:03]} 34... Nxg3+
{[%clk 0:00:10.3]} 35. Bxg3 {[%clk 0:00:01.7]} 35... Rxe1+ {[%clk 0:00:10.2]}
36. Kxe1 {[%clk 0:00:01.5]} 36... Rxg3 {[%clk 0:00:10.7]} 0-1

[Event "Late-Titled-Tuesday-Blitz-January-16-2024"]
[Site "Chess.com"]
[Date "2024.01.16"]
[Round "7"]
[White "AlexLongson"]
[Black "mortngabriel"]
[Result "1-0"]
[WhiteElo "2370"]
[BlackElo "2498"]
[TimeControl "180+1"]
[EndTime "15:17:37 PST"]
[Termination "AlexLongson won on time"]

1. e4 {[%clk 0:03:00.9]} 1... Nc6 {[%clk 0:03:00.3]} 2. d4 {[%clk 0:03:00.6]}
2... d6 {[%clk 0:03:00.2]} 3. Nf3 {[%clk 0:02:58.5]} 3... Bg4 {[%clk 0:02:59.4]}
4. Be3 {[%clk 0:02:57.4]} 4... Nf6 {[%clk 0:02:58.7]} 5. Nc3 {[%clk 0:02:53.8]}
5... e6 {[%clk 0:02:57.6]} 6. Be2 {[%clk 0:02:53.4]} 6... Be7 {[%clk 0:02:57.4]}
7. h3 {[%clk 0:02:53.4]} 7... Bxf3 {[%clk 0:02:57.1]} 8. Bxf3 {[%clk 0:02:53.1]}
8... O-O {[%clk 0:02:58]} 9. O-O {[%clk 0:02:50.8]} 9... a6 {[%clk 0:02:52.8]}
10. Ne2 {[%clk 0:02:49.7]} 10... d5 {[%clk 0:02:48]} 11. e5 {[%clk 0:02:45.6]}
11... Nd7 {[%clk 0:02:41.9]} 12. Nf4 {[%clk 0:02:34.1]} 12... Na5 {[%clk
0:02:36]} 13. c3 {[%clk 0:02:32.5]} 13... Nc4 {[%clk 0:02:35]} 14. Bc1 {[%clk
0:02:31.4]} 14... c5 {[%clk 0:02:35.2]} 15. Be2 {[%clk 0:02:18.8]} 15... Na5
{[%clk 0:02:13.8]} 16. Bd3 {[%clk 0:02:16.4]} 16... cxd4 {[%clk 0:01:57.4]} 17.
cxd4 {[%clk 0:02:15]} 17... Rc8 {[%clk 0:01:55.7]} 18. Qg4 {[%clk 0:01:54.8]}
18... Re8 {[%clk 0:01:32]} 19. Nh5 {[%clk 0:01:01.5]} 19... g6 {[%clk
0:01:30.8]} 20. Nf4 {[%clk 0:00:57.2]} 20... Nf8 {[%clk 0:01:19.4]} 21. g3
{[%clk 0:00:54.2]} 21... Qb6 {[%clk 0:01:09.6]} 22. Ne2 {[%clk 0:00:44.2]} 22...
Nc6 {[%clk 0:00:51.4]} 23. a3 {[%clk 0:00:35.5]} 23... Na5 {[%clk 0:00:50.2]}
24. b4 {[%clk 0:00:26.5]} 24... Nb3 {[%clk 0:00:49.1]} 25. Rb1 {[%clk
0:00:26.9]} 25... Nxc1 {[%clk 0:00:47.3]} 26. Rbxc1 {[%clk 0:00:27.2]} 26... a5
{[%clk 0:00:43.7]} 27. Rb1 {[%clk 0:00:13.5]} 27... axb4 {[%clk 0:00:42.8]} 28.
axb4 {[%clk 0:00:13.9]} 28... Ra8 {[%clk 0:00:39]} 29. h4 {[%clk 0:00:11.8]}
29... Ra3 {[%clk 0:00:38.7]} 30. Rfd1 {[%clk 0:00:11.8]} 30... h5 {[%clk
0:00:34.9]} 31. Qf4 {[%clk 0:00:07.8]} 31... Rc8 {[%clk 0:00:32.5]} 32. Qh6
{[%clk 0:00:07.4]} 32... Bxb4 {[%clk 0:00:17.7]} 33. g4 {[%clk 0:00:06.8]} 33...
hxg4 {[%clk 0:00:16.3]} 34. h5 {[%clk 0:00:07.1]} 34... Qa5 {[%clk 0:00:03.8]}
35. hxg6 {[%clk 0:00:06.4]} 35... fxg6 {[%clk 0:00:03.5]} 36. Bxg6 {[%clk
0:00:06.6]} 1-0